[Event "Titled Tuesday Blitz April 26 Late 2022"]
[White "Burke, Paul"]
[Black "Jegorovas, Aleksandras"]
[WhiteFideId "2605767"]
[BlackFideId "12801950"]
[WhiteElo "1871"]
[BlackElo "2247"]
[Result "0-1"]
[Round "05"]
[TimeControl "180+1"]
[Date "2022.04.26"]
[WhiteClock "0:01:23"]
[BlackClock "0:01:27"]

1. e4 {[%clk 0:02:44]}  e6 {[%clk 0:02:58]} 2. d4 {[%clk 0:02:42]}  d5 {[%clk 0:02:58]} 3. e5 {[%clk 0:02:42]}  c5 {[%clk 0:02:57]} 4. Qg4 {[%clk 0:02:42]}  cxd4 {[%clk 0:02:56]} 5. Nf3 {[%clk 0:02:42]}  Nc6 {[%clk 0:02:56]} 6. Bd3 {[%clk 0:02:42]}  f5 {[%clk 0:02:54]} 7. Qg3 {[%clk 0:02:41]}  Qc7 {[%clk 0:02:47]} 8. O-O {[%clk 0:02:40]}  Nge7 {[%clk 0:02:45]} 9. h4 {[%clk 0:02:38]}  Ng6 {[%clk 0:02:45]} 10. h5 {[%clk 0:02:38]}  Ngxe5 {[%clk 0:02:43]} 11. Nxe5 {[%clk 0:02:28]}  Qxe5 {[%clk 0:02:43]} 12. Bf4 {[%clk 0:02:26]}  Qf6 {[%clk 0:02:41]} 13. Bg5 {[%clk 0:02:23]}  Qf7 {[%clk 0:02:35]} 14. c3 {[%clk 0:02:21]}  Be7 {[%clk 0:02:28]} 15. Bxe7 {[%clk 0:02:19]}  Qxe7 {[%clk 0:02:28]} 16. cxd4 {[%clk 0:02:19]}  Nxd4 {[%clk 0:02:26]} 17. Nc3 {[%clk 0:02:19]}  O-O {[%clk 0:02:24]} 18. Rfe1 {[%clk 0:02:18]}  Qf6 {[%clk 0:02:23]} 19. Qc7 {[%clk 0:02:07]}  Rf7 {[%clk 0:02:14]} 20. Qa5 {[%clk 0:02:03]}  b6 {[%clk 0:02:09]} 21. Qa4 {[%clk 0:01:59]}  Bd7 {[%clk 0:02:08]} 22. Qd1 {[%clk 0:01:58]}  Qg5 {[%clk 0:02:01]} 23. Bf1 {[%clk 0:01:50]}  Qf6 {[%clk 0:01:47]} 24. Rc1 {[%clk 0:01:42]}  Rff8 {[%clk 0:01:46]} 25. a3 {[%clk 0:01:26]}  Rac8 {[%clk 0:01:33]} 26. b4 {[%clk 0:01:25]}  Rxc3 {[%clk 0:01:27]} 27. Rxc3 {[%clk 0:01:23]}  Ne2+ {[%clk 0:01:27]} 0-1


[Site "https://www.chess.com"]

[Event "Titled Tuesday Blitz April 26 Late 2022"]
[White "Butti, Enrique"]
[Black "Manukyan, Sargis A."]
[WhiteFideId "3700470"]
[BlackFideId "13303970"]
[WhiteElo "2080"]
[BlackElo "2187"]
[Result "0-1"]
[Round "05"]
[TimeControl "180+1"]
[Date "2022.04.26"]
[WhiteClock "0:00:47"]
[BlackClock "0:00:46"]

1. d4 {[%clk 0:03:00]}  d5 {[%clk 0:02:57]} 2. c4 {[%clk 0:03:00]}  e6 {[%clk 0:02:57]} 3. Nf3 {[%clk 0:02:59]}  Nf6 {[%clk 0:02:56]} 4. e3 {[%clk 0:02:59]}  Be7 {[%clk 0:02:57]} 5. Nc3 {[%clk 0:02:58]}  O-O {[%clk 0:02:57]} 6. b3 {[%clk 0:02:58]}  b6 {[%clk 0:02:56]} 7. Bb2 {[%clk 0:02:57]}  Bb7 {[%clk 0:02:56]} 8. Bd3 {[%clk 0:02:57]}  Nbd7 {[%clk 0:02:57]} 9. O-O {[%clk 0:02:56]}  Ne4 {[%clk 0:02:57]} 10. Qe2 {[%clk 0:02:55]}  f5 {[%clk 0:02:57]} 11. Rfd1 {[%clk 0:02:49]}  a6 {[%clk 0:02:54]} 12. Na4 {[%clk 0:02:41]}  g5 {[%clk 0:02:51]} 13. cxd5 {[%clk 0:02:36]}  exd5 {[%clk 0:02:51]} 14. Ne5 {[%clk 0:02:36]}  g4 {[%clk 0:02:49]} 15. f3 {[%clk 0:02:34]}  gxf3 {[%clk 0:02:49]} 16. gxf3 {[%clk 0:02:33]}  Nxe5 {[%clk 0:02:40]} 17. dxe5 {[%clk 0:02:30]}  Nc5 {[%clk 0:02:41]} 18. Nxc5 {[%clk 0:02:17]}  Bxc5 {[%clk 0:02:40]} 19. f4 {[%clk 0:02:17]}  Kh8 {[%clk 0:02:30]} 20. Bd4 {[%clk 0:02:15]}  Bxd4 {[%clk 0:02:26]} 21. exd4 {[%clk 0:02:14]}  c5 {[%clk 0:02:27]} 22. Kh1 {[%clk 0:02:05]}  Qh4 {[%clk 0:02:20]} 23. Qe3 {[%clk 0:01:58]}  c4 {[%clk 0:02:15]} 24. Be2 {[%clk 0:01:56]}  Rg8 {[%clk 0:02:08]} 25. Rg1 {[%clk 0:01:53]}  b5 {[%clk 0:02:07]} 26. Bf3 {[%clk 0:01:43]}  Qh3 {[%clk 0:01:44]} 27. e6 {[%clk 0:01:38]}  Rg6 {[%clk 0:01:21]} 28. e7 {[%clk 0:01:24]}  Re8 {[%clk 0:01:19]} 29. Rxg6 {[%clk 0:01:13]}  hxg6 {[%clk 0:01:18]} 30. Rg1 {[%clk 0:01:13]}  Kh7 {[%clk 0:00:49]} 31. Rg3 {[%clk 0:01:04]}  Qf1+ {[%clk 0:00:48]} 32. Rg1 {[%clk 0:01:01]}  Qh3 {[%clk 0:00:49]} 33. bxc4 {[%clk 0:00:56]}  dxc4 {[%clk 0:00:47]} 34. Rg3 {[%clk 0:00:47]}  Qf1+ {[%clk 0:00:46]} 0-1


[Site "https://www.chess.com"]

[Event "Titled Tuesday Blitz April 26 Late 2022"]
[White "Chuemsakul, Sarocha"]
[Black "Pesotskiy, Mikhail"]
[WhiteFideId "6203710"]
[BlackFideId "34164453"]
[WhiteElo "1703"]
[BlackElo "2010"]
[Result "1/2-1/2"]
[Round "05"]
[TimeControl "180+1"]
[Date "2022.04.26"]
[WhiteClock "0:00:08"]
[BlackClock "0:00:10"]

1. d4 {[%clk 0:03:00]}  Nf6 {[%clk 0:02:59]} 2. c4 {[%clk 0:03:01]}  e6 {[%clk 0:02:59]} 3. Nf3 {[%clk 0:03:01]}  Bb4+ {[%clk 0:03:00]} 4. Bd2 {[%clk 0:03:01]}  a5 {[%clk 0:03:00]} 5. g3 {[%clk 0:02:58]}  b6 {[%clk 0:03:00]} 6. Bg2 {[%clk 0:02:58]}  Bb7 {[%clk 0:03:01]} 7. O-O {[%clk 0:02:58]}  O-O {[%clk 0:03:01]} 8. b3 {[%clk 0:02:44]}  Bxd2 {[%clk 0:02:45]} 9. Nbxd2 {[%clk 0:02:41]}  d6 {[%clk 0:02:46]} 10. Qc2 {[%clk 0:02:41]}  Nbd7 {[%clk 0:02:45]} 11. e4 {[%clk 0:02:38]}  e5 {[%clk 0:02:45]} 12. d5 {[%clk 0:02:39]}  Nc5 {[%clk 0:02:41]} 13. a3 {[%clk 0:02:37]}  Qe7 {[%clk 0:02:34]} 14. b4 {[%clk 0:02:37]}  Ncd7 {[%clk 0:02:33]} 15. Rac1 {[%clk 0:02:31]}  axb4 {[%clk 0:02:32]} 16. axb4 {[%clk 0:02:31]}  Ra3 {[%clk 0:02:32]} 17. Ra1 {[%clk 0:02:27]}  Rfa8 {[%clk 0:02:33]} 18. Rxa3 {[%clk 0:02:27]}  Rxa3 {[%clk 0:02:33]} 19. Qb2 {[%clk 0:02:26]}  Ra8 {[%clk 0:02:33]} 20. Ra1 {[%clk 0:02:26]}  Qe8 {[%clk 0:02:34]} 21. Ra3 {[%clk 0:02:23]}  Kf8 {[%clk 0:02:31]} 22. Qa2 {[%clk 0:02:23]}  Rxa3 {[%clk 0:02:32]} 23. Qxa3 {[%clk 0:02:24]}  Qa8 {[%clk 0:02:32]} 24. Qxa8+ {[%clk 0:02:24]}  Bxa8 {[%clk 0:02:33]} 25. Ne1 {[%clk 0:02:19]}  Ke7 {[%clk 0:02:29]} 26. Nd3 {[%clk 0:02:19]}  c6 {[%clk 0:02:14]} 27. Kf1 {[%clk 0:02:12]}  cxd5 {[%clk 0:01:51]} 28. cxd5 {[%clk 0:02:02]}  Ne8 {[%clk 0:01:50]} 29. Nb1 {[%clk 0:01:49]}  Bb7 {[%clk 0:01:47]} 30. Nc3 {[%clk 0:01:48]}  Nc7 {[%clk 0:01:48]} 31. Ke1 {[%clk 0:01:41]}  Ba6 {[%clk 0:01:46]} 32. Nb2 {[%clk 0:01:34]}  Nb8 {[%clk 0:01:29]} 33. Nba4 {[%clk 0:01:25]}  b5 {[%clk 0:00:54]} 34. Nb6 {[%clk 0:00:52]}  Nd7 {[%clk 0:00:55]} 35. Nxd7 {[%clk 0:00:50]}  Kxd7 {[%clk 0:00:56]} 36. Bf1 {[%clk 0:00:51]}  Kc8 {[%clk 0:00:55]} 37. Bd3 {[%clk 0:00:49]}  Kb7 {[%clk 0:00:55]} 38. Kd2 {[%clk 0:00:47]}  Kb6 {[%clk 0:00:55]} 39. Ke3 {[%clk 0:00:48]}  Bc8 {[%clk 0:00:54]} 40. f4 {[%clk 0:00:47]}  f6 {[%clk 0:00:46]} 41. f5 {[%clk 0:00:30]}  Bd7 {[%clk 0:00:47]} 42. Kd2 {[%clk 0:00:29]}  Na6 {[%clk 0:00:47]} 43. Na2 {[%clk 0:00:29]}  Kb7 {[%clk 0:00:40]} 44. Kc3 {[%clk 0:00:29]}  Kc8 {[%clk 0:00:40]} 45. Nc1 {[%clk 0:00:28]}  Kd8 {[%clk 0:00:40]} 46. Ne2 {[%clk 0:00:28]}  Ke7 {[%clk 0:00:41]} 47. g4 {[%clk 0:00:28]}  Kf7 {[%clk 0:00:42]} 48. Ng1 {[%clk 0:00:25]}  g6 {[%clk 0:00:42]} 49. Nf3 {[%clk 0:00:25]}  Kg7 {[%clk 0:00:38]} 50. g5 {[%clk 0:00:12]}  Nc7 {[%clk 0:00:36]} 51. gxf6+ {[%clk 0:00:07]}  Kxf6 {[%clk 0:00:36]} 52. fxg6 {[%clk 0:00:08]}  hxg6 {[%clk 0:00:27]} 53. Kd2 {[%clk 0:00:06]}  Bg4 {[%clk 0:00:27]} 54. Ne1 {[%clk 0:00:04]}  Kg5 {[%clk 0:00:26]} 55. Ke3 {[%clk 0:00:05]}  Kh4 {[%clk 0:00:26]} 56. Bf1 {[%clk 0:00:04]}  Bh3 {[%clk 0:00:15]} 57. Be2 {[%clk 0:00:03]}  Bg4 {[%clk 0:00:13]} 58. Bf1 {[%clk 0:00:04]}  g5 {[%clk 0:00:11]} 59. Nc2 {[%clk 0:00:04]}  Bd7 {[%clk 0:00:10]} 60. Na3 {[%clk 0:00:04]}  g4 {[%clk 0:00:11]} 61. Kf2 {[%clk 0:00:04]}  Na6 {[%clk 0:00:10]} 62. Bxb5 {[%clk 0:00:03]}  Bxb5 {[%clk 0:00:07]} 63. Nxb5 {[%clk 0:00:03]}  Nxb4 {[%clk 0:00:07]} 64. Nxd6 {[%clk 0:00:04]}  Kg5 {[%clk 0:00:08]} 65. Nc4 {[%clk 0:00:04]}  Kf4 {[%clk 0:00:07]} 66. Nd2 {[%clk 0:00:04]}  Nd3+ {[%clk 0:00:06]} 67. Ke2 {[%clk 0:00:05]}  Nc5 {[%clk 0:00:05]} 68. d6 {[%clk 0:00:04]}  Kg5 {[%clk 0:00:04]} 69. Ke3 {[%clk 0:00:04]}  Kf6 {[%clk 0:00:05]} 70. Nc4 {[%clk 0:00:05]}  Ke6 {[%clk 0:00:05]} 71. Nb6 {[%clk 0:00:02]}  Kxd6 {[%clk 0:00:05]} 72. Nc4+ {[%clk 0:00:03]}  Ke6 {[%clk 0:00:06]} 73. Nd2 {[%clk 0:00:04]}  Kf6 {[%clk 0:00:07]} 74. Nc4 {[%clk 0:00:02]}  Nd7 {[%clk 0:00:06]} 75. Nd6 {[%clk 0:00:03]}  Kg5 {[%clk 0:00:07]} 76. Nf5 {[%clk 0:00:03]}  Nf6 {[%clk 0:00:07]} 77. Nd6 {[%clk 0:00:03]}  Kh4 {[%clk 0:00:05]} 78. Nf7 {[%clk 0:00:03]}  Nd7 {[%clk 0:00:05]} 79. Kf2 {[%clk 0:00:04]}  Kh3 {[%clk 0:00:06]} 80. Kg1 {[%clk 0:00:04]}  g3 {[%clk 0:00:06]} 81. hxg3 {[%clk 0:00:04]}  Kxg3 {[%clk 0:00:07]} 82. Kf1 {[%clk 0:00:05]}  Kf3 {[%clk 0:00:07]} 83. Nxe5+ {[%clk 0:00:06]}  Nxe5 {[%clk 0:00:07]} 84. Ke1 {[%clk 0:00:07]}  Ke3 {[%clk 0:00:08]} 85. Kd1 {[%clk 0:00:07]}  Nd3 {[%clk 0:00:09]} 86. Kc2 {[%clk 0:00:08]}  Ne5 {[%clk 0:00:09]} 87. Kc3 {[%clk 0:00:08]}  Kxe4 {[%clk 0:00:10]} 1/2-1/2


[Site "https://www.chess.com"]

[Event "Titled Tuesday Blitz April 26 Late 2022"]
[White "Djokic, Mihailo"]
[Black "Nozdrachev, Leonid"]
[WhiteFideId "976440"]
[BlackFideId "24113433"]
[WhiteElo "2202"]
[BlackElo "2242"]
[Result "0-1"]
[Round "05"]
[TimeControl "180+1"]
[Date "2022.04.26"]
[WhiteClock "0:00:01"]
[BlackClock "0:00:27"]

1. e4 {[%clk 0:03:00]}  d6 {[%clk 0:02:58]} 2. d4 {[%clk 0:02:45]}  Nf6 {[%clk 0:02:58]} 3. Nc3 {[%clk 0:02:46]}  e5 {[%clk 0:02:57]} 4. Nf3 {[%clk 0:02:41]}  Nbd7 {[%clk 0:02:57]} 5. Bc4 {[%clk 0:02:32]}  Be7 {[%clk 0:02:57]} 6. O-O {[%clk 0:02:20]}  O-O {[%clk 0:02:57]} 7. Re1 {[%clk 0:02:16]}  c6 {[%clk 0:02:57]} 8. a4 {[%clk 0:02:16]}  Qc7 {[%clk 0:02:56]} 9. Ba2 {[%clk 0:02:15]}  Re8 {[%clk 0:02:55]} 10. Bg5 {[%clk 0:02:15]}  Nf8 {[%clk 0:02:55]} 11. Qd2 {[%clk 0:02:11]}  Ng6 {[%clk 0:02:54]} 12. Rad1 {[%clk 0:02:11]}  Bg4 {[%clk 0:02:51]} 13. Qe3 {[%clk 0:01:54]}  h6 {[%clk 0:02:31]} 14. Bxf6 {[%clk 0:01:38]}  Bxf6 {[%clk 0:02:32]} 15. dxe5 {[%clk 0:01:29]}  Nxe5 {[%clk 0:02:29]} 16. Nxe5 {[%clk 0:01:25]}  Bxe5 {[%clk 0:02:23]} 17. f3 {[%clk 0:01:24]}  Bh5 {[%clk 0:02:13]} 18. g4 {[%clk 0:01:20]}  Bg6 {[%clk 0:02:01]} 19. f4 {[%clk 0:01:18]}  Bxc3 {[%clk 0:02:01]} 20. Qxc3 {[%clk 0:01:16]}  Bxe4 {[%clk 0:01:57]} 21. Rd2 {[%clk 0:01:00]}  d5 {[%clk 0:01:56]} 22. Rf2 {[%clk 0:00:52]}  Rad8 {[%clk 0:01:53]} 23. h4 {[%clk 0:00:48]}  h5 {[%clk 0:01:38]} 24. gxh5 {[%clk 0:00:43]}  Rd6 {[%clk 0:01:33]} 25. Rg2 {[%clk 0:00:28]}  f5 {[%clk 0:01:14]} 26. Rg5 {[%clk 0:00:20]}  Rd7 {[%clk 0:01:09]} 27. Qg3 {[%clk 0:00:17]}  Qb6+ {[%clk 0:01:04]} 28. Kh2 {[%clk 0:00:17]}  Qxb2 {[%clk 0:01:02]} 29. Bb3 {[%clk 0:00:17]}  Ree7 {[%clk 0:00:55]} 30. h6 {[%clk 0:00:15]}  Kh7 {[%clk 0:00:53]} 31. hxg7 {[%clk 0:00:05]}  Rxg7 {[%clk 0:00:54]} 32. h5 {[%clk 0:00:05]}  Bxc2 {[%clk 0:00:51]} 33. Bxc2 {[%clk 0:00:02]}  Qxc2+ {[%clk 0:00:51]} 34. Kh3 {[%clk 0:00:03]}  Qb2 {[%clk 0:00:48]} 35. Re6 {[%clk 0:00:02]}  Qa1 {[%clk 0:00:39]} 36. Kh2 {[%clk 0:00:01]}  Qb2+ {[%clk 0:00:37]} 37. Kh3 {[%clk 0:00:02]}  Qc1 {[%clk 0:00:37]} 38. Kh2 {[%clk 0:00:01]}  Qd2+ {[%clk 0:00:36]} 39. Kh3 {[%clk 0:00:02]}  Qd1 {[%clk 0:00:36]} 40. Re1 {[%clk 0:00:02]}  Rxg5 {[%clk 0:00:29]} 41. fxg5 {[%clk 0:00:01]}  Qxh5+ {[%clk 0:00:28]} 42. Kg2 {[%clk 0:00:01]}  Qg4 {[%clk 0:00:28]} 43. Rh1+ {[%clk 0:00:01]}  Kg6 {[%clk 0:00:28]} 44. Rh6+ {[%clk 0:00:02]}  Kxg5 {[%clk 0:00:28]} 45. Rh7 {[%clk 0:00:01]}  Rxh7 {[%clk 0:00:27]} 0-1


[Site "https://www.chess.com"]

[Event "Titled Tuesday Blitz April 26 Late 2022"]
[White "Donatti, Alvaro"]
[Black "Aigner, Michael"]
[WhiteFideId "3000303"]
[BlackFideId "2017288"]
[WhiteElo "2138"]
[BlackElo "2394"]
[Result "0-1"]
[Round "05"]
[TimeControl "180+1"]
[Date "2022.04.26"]
[WhiteClock "0:00:10"]
[BlackClock "0:00:15"]

1. e4 {[%clk 0:03:00]}  c5 {[%clk 0:02:59]} 2. Nf3 {[%clk 0:03:00]}  Nc6 {[%clk 0:03:00]} 3. d4 {[%clk 0:02:57]}  cxd4 {[%clk 0:02:59]} 4. Nxd4 {[%clk 0:02:58]}  g6 {[%clk 0:03:00]} 5. Nc3 {[%clk 0:02:57]}  Bg7 {[%clk 0:03:00]} 6. Be3 {[%clk 0:02:57]}  Nf6 {[%clk 0:03:00]} 7. Be2 {[%clk 0:02:56]}  O-O {[%clk 0:03:00]} 8. Qd2 {[%clk 0:02:54]}  d5 {[%clk 0:03:00]} 9. exd5 {[%clk 0:02:52]}  Nxd5 {[%clk 0:03:00]} 10. Nxc6 {[%clk 0:02:51]}  bxc6 {[%clk 0:02:59]} 11. Bd4 {[%clk 0:02:47]}  e5 {[%clk 0:02:57]} 12. Bc5 {[%clk 0:02:45]}  Re8 {[%clk 0:02:53]} 13. O-O {[%clk 0:02:44]}  Be6 {[%clk 0:02:49]} 14. Ne4 {[%clk 0:02:42]}  Nf4 {[%clk 0:02:42]} 15. Bf3 {[%clk 0:02:24]}  Qxd2 {[%clk 0:02:40]} 16. Nxd2 {[%clk 0:02:24]}  Bd5 {[%clk 0:02:36]} 17. Be4 {[%clk 0:02:00]}  f5 {[%clk 0:02:31]} 18. Bxd5+ {[%clk 0:01:59]}  cxd5 {[%clk 0:02:30]} 19. c3 {[%clk 0:01:56]}  Nd3 {[%clk 0:02:24]} 20. Ba3 {[%clk 0:01:54]}  Rab8 {[%clk 0:02:19]} 21. Nb3 {[%clk 0:01:52]}  e4 {[%clk 0:02:05]} 22. Rad1 {[%clk 0:01:45]}  f4 {[%clk 0:02:02]} 23. Rd2 {[%clk 0:01:39]}  g5 {[%clk 0:01:57]} 24. Nc5 {[%clk 0:01:30]}  Nxc5 {[%clk 0:01:51]} 25. Bxc5 {[%clk 0:01:30]}  Red8 {[%clk 0:01:43]} 26. Rfd1 {[%clk 0:01:27]}  h6 {[%clk 0:01:33]} 27. Bxa7 {[%clk 0:01:25]}  Ra8 {[%clk 0:01:32]} 28. Bc5 {[%clk 0:01:15]}  Rxa2 {[%clk 0:01:32]} 29. h3 {[%clk 0:01:05]}  Kf7 {[%clk 0:01:24]} 30. Rxd5 {[%clk 0:01:04]}  Rxd5 {[%clk 0:01:24]} 31. Rxd5 {[%clk 0:01:04]}  Rxb2 {[%clk 0:01:24]} 32. Rd7+ {[%clk 0:01:02]}  Kg6 {[%clk 0:01:22]} 33. Rd6+ {[%clk 0:00:55]}  Kf5 {[%clk 0:01:15]} 34. Bd4 {[%clk 0:00:53]}  Bxd4 {[%clk 0:01:09]} 35. cxd4 {[%clk 0:00:53]}  Rd2 {[%clk 0:01:06]} 36. Rxh6 {[%clk 0:00:51]}  Rxd4 {[%clk 0:01:03]} 37. Rh8 {[%clk 0:00:45]}  Rd1+ {[%clk 0:01:02]} 38. Kh2 {[%clk 0:00:45]}  Rd2 {[%clk 0:01:03]} 39. Kg1 {[%clk 0:00:44]}  Rd1+ {[%clk 0:01:03]} 40. Kh2 {[%clk 0:00:44]}  Rf1 {[%clk 0:01:03]} 41. g4+ {[%clk 0:00:38]}  fxg3+ {[%clk 0:00:49]} 42. Kxg3 {[%clk 0:00:37]}  Ra1 {[%clk 0:00:45]} 43. h4 {[%clk 0:00:31]}  gxh4+ {[%clk 0:00:43]} 44. Rxh4 {[%clk 0:00:29]}  Rg1+ {[%clk 0:00:43]} 45. Kh2 {[%clk 0:00:28]}  Rg5 {[%clk 0:00:41]} 46. Rh8 {[%clk 0:00:25]}  Ke5 {[%clk 0:00:37]} 47. Rh3 {[%clk 0:00:21]}  Kd4 {[%clk 0:00:33]} 48. Rg3 {[%clk 0:00:18]}  Rh5+ {[%clk 0:00:27]} 49. Rh3 {[%clk 0:00:17]}  Ra5 {[%clk 0:00:20]} 50. Kg2 {[%clk 0:00:15]}  Rf5 {[%clk 0:00:18]} 51. Ra3 {[%clk 0:00:13]}  Rg5+ {[%clk 0:00:17]} 52. Rg3 {[%clk 0:00:11]}  Ra5 {[%clk 0:00:16]} 53. Ra3 {[%clk 0:00:10]}  Rxa3 {[%clk 0:00:15]} 0-1


[Site "https://www.chess.com"]

[Event "Titled Tuesday Blitz April 26 Late 2022"]
[White "Donchenko, Alexander"]
[Black "Xiong, Jeffery"]
[WhiteFideId "24603295"]
[BlackFideId "2047640"]
[WhiteElo "2539"]
[BlackElo "2727"]
[Result "1-0"]
[Round "05"]
[TimeControl "180+1"]
[Date "2022.04.26"]
[WhiteClock "0:00:16"]
[BlackClock "0:00:08"]

1. d4 {[%clk 0:03:00]}  d5 {[%clk 0:02:58]} 2. Nf3 {[%clk 0:03:01]}  e6 {[%clk 0:02:57]} 3. c4 {[%clk 0:03:00]}  dxc4 {[%clk 0:02:57]} 4. e3 {[%clk 0:03:00]}  a6 {[%clk 0:02:56]} 5. Bxc4 {[%clk 0:03:00]}  Nf6 {[%clk 0:02:56]} 6. O-O {[%clk 0:03:00]}  c5 {[%clk 0:02:56]} 7. Nc3 {[%clk 0:02:59]}  b5 {[%clk 0:02:54]} 8. Be2 {[%clk 0:02:59]}  Nc6 {[%clk 0:02:54]} 9. dxc5 {[%clk 0:02:55]}  Bxc5 {[%clk 0:02:55]} 10. Qxd8+ {[%clk 0:02:54]}  Nxd8 {[%clk 0:02:56]} 11. Nd2 {[%clk 0:02:50]}  Be7 {[%clk 0:02:53]} 12. Bf3 {[%clk 0:02:47]}  Rb8 {[%clk 0:02:53]} 13. a4 {[%clk 0:02:44]}  b4 {[%clk 0:02:53]} 14. Nce4 {[%clk 0:02:43]}  Bb7 {[%clk 0:02:43]} 15. Nxf6+ {[%clk 0:02:40]}  Bxf6 {[%clk 0:02:43]} 16. Ne4 {[%clk 0:02:39]}  Be7 {[%clk 0:02:31]} 17. b3 {[%clk 0:02:32]}  f5 {[%clk 0:02:09]} 18. Nd2 {[%clk 0:02:32]}  Bf6 {[%clk 0:02:09]} 19. Ra2 {[%clk 0:02:31]}  Bxf3 {[%clk 0:02:03]} 20. gxf3 {[%clk 0:02:31]}  Nb7 {[%clk 0:01:56]} 21. Bb2 {[%clk 0:02:13]}  Ke7 {[%clk 0:01:44]} 22. Rc1 {[%clk 0:02:12]}  Rhc8 {[%clk 0:01:41]} 23. Bxf6+ {[%clk 0:02:12]}  Kxf6 {[%clk 0:01:40]} 24. Rac2 {[%clk 0:02:12]}  Rd8 {[%clk 0:01:36]} 25. Kf1 {[%clk 0:02:11]}  Na5 {[%clk 0:01:12]} 26. Ke2 {[%clk 0:02:10]}  Rxd2+ {[%clk 0:01:12]} 27. Rxd2 {[%clk 0:02:05]}  Nxb3 {[%clk 0:01:12]} 28. Rc6 {[%clk 0:02:05]}  Nxd2 {[%clk 0:01:12]} 29. Kxd2 {[%clk 0:02:06]}  a5 {[%clk 0:00:57]} 30. Rc5 {[%clk 0:02:03]}  Rd8+ {[%clk 0:00:57]} 31. Kc1 {[%clk 0:02:00]}  Rd5 {[%clk 0:00:58]} 32. Rc7 {[%clk 0:01:58]}  h5 {[%clk 0:00:52]} 33. f4 {[%clk 0:01:57]}  h4 {[%clk 0:00:49]} 34. h3 {[%clk 0:01:55]}  Rd3 {[%clk 0:00:40]} 35. Rc5 {[%clk 0:01:52]}  Ra3 {[%clk 0:00:40]} 36. Rxa5 {[%clk 0:01:51]}  Ra2 {[%clk 0:00:30]} 37. Rb5 {[%clk 0:01:35]}  Rxa4 {[%clk 0:00:30]} 38. Kb2 {[%clk 0:01:35]}  g5 {[%clk 0:00:11]} 39. fxg5+ {[%clk 0:01:31]}  Kxg5 {[%clk 0:00:12]} 40. Rb6 {[%clk 0:01:18]}  Kf6 {[%clk 0:00:12]} 41. Rb5 {[%clk 0:01:18]}  e5 {[%clk 0:00:05]} 42. Rb6+ {[%clk 0:01:16]}  Kg5 {[%clk 0:00:05]} 43. Rb5 {[%clk 0:01:17]}  e4 {[%clk 0:00:06]} 44. Rb8 {[%clk 0:01:13]}  Ra7 {[%clk 0:00:03]} 45. Rxb4 {[%clk 0:01:04]}  Rg7 {[%clk 0:00:02]} 46. Rb6 {[%clk 0:01:00]}  Rd7 {[%clk 0:00:03]} 47. Kc2 {[%clk 0:01:00]}  Ra7 {[%clk 0:00:03]} 48. Kb2 {[%clk 0:00:59]}  Rd7 {[%clk 0:00:03]} 49. Kc2 {[%clk 0:01:00]}  Rc7+ {[%clk 0:00:04]} 50. Kd2 {[%clk 0:00:53]}  Ra7 {[%clk 0:00:05]} 51. Rb1 {[%clk 0:00:53]}  Ra2+ {[%clk 0:00:05]} 52. Ke1 {[%clk 0:00:53]}  Ra5 {[%clk 0:00:04]} 53. Kf1 {[%clk 0:00:52]}  f4 {[%clk 0:00:03]} 54. exf4+ {[%clk 0:00:52]}  Kxf4 {[%clk 0:00:04]} 55. Kg2 {[%clk 0:00:52]}  Rg5+ {[%clk 0:00:04]} 56. Kf1 {[%clk 0:00:51]}  Ra5 {[%clk 0:00:05]} 57. Rb3 {[%clk 0:00:50]}  Ra2 {[%clk 0:00:04]} 58. Rb8 {[%clk 0:00:47]}  Ra1+ {[%clk 0:00:03]} 59. Kg2 {[%clk 0:00:47]}  Ra2 {[%clk 0:00:04]} 60. Rf8+ {[%clk 0:00:47]}  Ke5 {[%clk 0:00:04]} 61. Rh8 {[%clk 0:00:45]}  e3 {[%clk 0:00:04]} 62. Re8+ {[%clk 0:00:45]}  Kf4 {[%clk 0:00:03]} 63. Rxe3 {[%clk 0:00:45]}  Ra8 {[%clk 0:00:03]} 64. Rf3+ {[%clk 0:00:45]}  Ke4 {[%clk 0:00:04]} 65. Rf7 {[%clk 0:00:44]}  Rg8+ {[%clk 0:00:05]} 66. Kf1 {[%clk 0:00:45]}  Ke5 {[%clk 0:00:02]} 67. Rh7 {[%clk 0:00:44]}  Kf5 {[%clk 0:00:02]} 68. Rxh4 {[%clk 0:00:44]}  Rb8 {[%clk 0:00:03]} 69. Kg2 {[%clk 0:00:44]}  Kg6 {[%clk 0:00:03]} 70. Rg4+ {[%clk 0:00:43]}  Kf7 {[%clk 0:00:04]} 71. Kg3 {[%clk 0:00:43]}  Rb3+ {[%clk 0:00:05]} 72. f3 {[%clk 0:00:43]}  Rb5 {[%clk 0:00:05]} 73. h4 {[%clk 0:00:43]}  Rb1 {[%clk 0:00:05]} 74. Rg5 {[%clk 0:00:43]}  Rg1+ {[%clk 0:00:05]} 75. Kf4 {[%clk 0:00:44]}  Rh1 {[%clk 0:00:06]} 76. Kg4 {[%clk 0:00:37]}  Rg1+ {[%clk 0:00:06]} 77. Kf5 {[%clk 0:00:37]}  Rh1 {[%clk 0:00:07]} 78. Rg4 {[%clk 0:00:22]}  Ra1 {[%clk 0:00:07]} 79. Kf4 {[%clk 0:00:19]}  Kf6 {[%clk 0:00:07]} 80. Kg3 {[%clk 0:00:18]}  Rg1+ {[%clk 0:00:07]} 81. Kh2 {[%clk 0:00:18]}  Rf1 {[%clk 0:00:07]} 82. Kg2 {[%clk 0:00:18]}  Ra1 {[%clk 0:00:08]} 83. h5 {[%clk 0:00:18]}  Ra2+ {[%clk 0:00:08]} 84. Kg3 {[%clk 0:00:18]}  Ra1 {[%clk 0:00:09]} 85. h6 {[%clk 0:00:17]}  Rh1 {[%clk 0:00:08]} 86. Rh4 {[%clk 0:00:16]} 1-0


[Site "https://www.chess.com"]

[Event "Titled Tuesday Blitz April 26 Late 2022"]
[White "Dudzinski, Pawel"]
[Black "Adewumi, Tanitoluwa"]
[WhiteFideId "1117890"]
[BlackFideId "30966396"]
[WhiteElo "2033"]
[BlackElo "2534"]
[Result "1-0"]
[Round "05"]
[TimeControl "180+1"]
[Date "2022.04.26"]
[WhiteClock "0:00:04"]
[BlackClock "0:00:04"]

1. e4 {[%clk 0:02:54]}  e5 {[%clk 0:02:58]} 2. Nc3 {[%clk 0:02:52]}  Nc6 {[%clk 0:02:43]} 3. g3 {[%clk 0:02:51]}  Bc5 {[%clk 0:02:39]} 4. Bg2 {[%clk 0:02:51]}  d6 {[%clk 0:02:39]} 5. Nge2 {[%clk 0:02:51]}  Nge7 {[%clk 0:02:39]} 6. Na4 {[%clk 0:02:51]}  h5 {[%clk 0:02:37]} 7. h3 {[%clk 0:02:51]}  h4 {[%clk 0:02:36]} 8. g4 {[%clk 0:02:52]}  Ng6 {[%clk 0:02:36]} 9. Nxc5 {[%clk 0:02:50]}  dxc5 {[%clk 0:02:35]} 10. d3 {[%clk 0:02:50]}  Be6 {[%clk 0:02:35]} 11. f4 {[%clk 0:02:49]}  exf4 {[%clk 0:02:35]} 12. Nxf4 {[%clk 0:02:49]}  Nxf4 {[%clk 0:02:35]} 13. Bxf4 {[%clk 0:02:50]}  Qf6 {[%clk 0:02:35]} 14. Bxc7 {[%clk 0:02:41]}  Qxb2 {[%clk 0:02:26]} 15. O-O {[%clk 0:02:41]}  Rc8 {[%clk 0:02:12]} 16. Bf4 {[%clk 0:02:32]}  O-O {[%clk 0:02:01]} 17. Rf2 {[%clk 0:02:22]}  c4 {[%clk 0:01:57]} 18. Rb1 {[%clk 0:02:10]}  Qxa2 {[%clk 0:01:42]} 19. d4 {[%clk 0:02:11]}  Rfd8 {[%clk 0:01:33]} 20. d5 {[%clk 0:02:10]}  Ne7 {[%clk 0:01:23]} 21. Rxb7 {[%clk 0:02:01]}  Ng6 {[%clk 0:01:15]} 22. Bg5 {[%clk 0:02:01]}  Rd7 {[%clk 0:01:14]} 23. Rxd7 {[%clk 0:01:09]}  Bxd7 {[%clk 0:01:15]} 24. Qd4 {[%clk 0:01:09]}  Qa3 {[%clk 0:01:01]} 25. e5 {[%clk 0:01:03]}  Qc5 {[%clk 0:00:52]} 26. Be3 {[%clk 0:00:55]}  Qe7 {[%clk 0:00:46]} 27. e6 {[%clk 0:00:48]}  fxe6 {[%clk 0:00:45]} 28. d6 {[%clk 0:00:47]}  Qe8 {[%clk 0:00:40]} 29. Qxa7 {[%clk 0:00:44]}  e5 {[%clk 0:00:37]} 30. Bd5+ {[%clk 0:00:42]}  Kh7 {[%clk 0:00:33]} 31. Bf7 {[%clk 0:00:41]}  Qd8 {[%clk 0:00:33]} 32. Qb7 {[%clk 0:00:25]}  Nf4 {[%clk 0:00:29]} 33. Qe4+ {[%clk 0:00:20]}  Kh8 {[%clk 0:00:29]} 34. Bxf4 {[%clk 0:00:18]}  exf4 {[%clk 0:00:30]} 35. Qxf4 {[%clk 0:00:18]}  Rc5 {[%clk 0:00:28]} 36. Kh2 {[%clk 0:00:14]}  Bc6 {[%clk 0:00:12]} 37. Bg6 {[%clk 0:00:12]}  Qg8 {[%clk 0:00:02]} 38. Qf8 {[%clk 0:00:06]}  Re5 {[%clk 0:00:03]} 39. Qxg8+ {[%clk 0:00:05]}  Kxg8 {[%clk 0:00:04]} 40. Bf7+ {[%clk 0:00:05]}  Kf8 {[%clk 0:00:04]} 41. Bd5+ {[%clk 0:00:05]}  Rf5 {[%clk 0:00:04]} 42. Rxf5+ {[%clk 0:00:04]} 1-0


[Site "https://www.chess.com"]